Cogmind - Beta 10.1 @@@ ROGUE MODE // 2021.06.29 @ 14:53:31 // Winter2019/RPGLIKE Player: Farfid Result: Self-destructed Performance ------------- Evolutions (1) 500 Regions Visited (5) 1000 Robots Destroyed (59) 295 Value Destroyed (1257) 1257 Prototype IDs (33) 660 Alien Tech Used (0) 0 Bonus (478) 478 TOTAL SCORE: 4190 Bonus ------- High Alert Combat Kills 178 Aligned with FarCom 300 Cogmind --------- Core Integrity 650/650 Matter 350/350 Energy 288/290 System Corruption 0% Temperature Cool (0) Movement Rolling (80) Location -9/Exiles Parts ------- > --- POWER (1) -------- Improved Deuterium Engine > --- PROPULSION (2) --- Wheel Wheel > --- UTILITY (2) ------ Disposable Heat Sink Tractor Beam > --- WEAPON (4) ------- Minigun Minigun Minigun Minigun > --- INVENTORY (2) ---- Protomatter-55 Fission Core Peak State ------------ > --- POWER ------------ Heavy Ion Engine > --- PROPULSION ------- Wheel Wheel > --- UTILITY ---------- Improved Heat Sink Tractor Beam > --- WEAPON ----------- Minigun Minigun Minigun Minigun > --- INVENTORY -------- Protomatter Protomatter [Rating: 21] Favorites ----------- Power Light Ion Engine Engine Light Ion Engine Power Core Light Nuclear Core Propulsion Wheel Wheel Wheel Utility Tractor Beam Device Tractor Beam Weapon Minigun Energy Gun EM Pulse Gun Ballistic Gun Minigun Build | -11 -10 -10 -9 -9 -9 ------- Run | Scr Mat Min Mat Min Exi Slots Evolved 5 | 3 . . 2 . . Power . | . . . . . . Propulsion 1 | 1 . . . . . Utility 1 | 1 . . . . . Weapon 3 | 1 . . 2 . . Parts Attached 18 | 5 1 1 10 1 . Power 4 | 1 . . 2 1 . Engine 3 | 1 . . 1 1 . Core 1 | . . . 1 . . Reactor . | . . . . . . Propulsion 2 | 2 . . . . . Treads . | . . . . . . Leg . | . . . . . . Wheel 2 | 2 . . . . . Hover . | . . . . . . Flight . | . . . . . . Utility 4 | . . 1 3 . . Device 4 | . . 1 3 . . Storage . | . . . . . . Processor . | . . . . . . Hackware . | . . . . . . Protection . | . . . . . . Artifact . | . . . . . . Weapon 8 | 2 1 . 5 . . Energy Gun 1 | 1 . . . . . Energy Cannon . | . . . . . . Ballistic Gun 7 | 1 1 . 5 . . Ballistic Cannon . | . . . . . . Launcher . | . . . . . . Special Weapon . | . . . . . . Impact Weapon . | . . . . . . Slashing Weapon . | . . . . . . Piercing Weapon . | . . . . . . Special Melee Weapon . | . . . . . . Unidentified Prototypes 1 | . . . 1 . . Parts Lost 1 | . . . 1 . . Power 1 | . . . 1 . . Propulsion . | . . . . . . Utility . | . . . . . . Weapon . | . . . . . . Highest Loss Streak 1 | . . . 1 . . Average Slot Usage (%) 90 | . 71 82 89 100 100 Engine 10 | . 14 14 9 11 11 Core 1 | . . . 2 . . Wheel 24 | . 28 28 24 22 22 Device 15 | . . 11 14 22 22 Ballistic Gun 37 | . 24 28 38 44 44 Naked Turns . | . . . . . . Heaviest Build 24 | 7 7 8 22 24 24 Greatest Support 25 | 25 25 25 25 25 25 Greatest Overweight (x) . | . . . . . . Average Overweight (x) . | . . . . . . Largest Inventory Capacity 2 | 1 1 1 2 2 2 Average Capacity 1 | 1 1 1 1 2 2 Most Carried 2 | . 1 1 2 2 2 Average Carried 1 | . . 1 1 2 1 Final Capacity 2 | 1 1 1 2 2 2 Final Carried 2 | . 1 1 2 2 2 Class Distribution -------------------- 76% | Gunner 23% | Mutant Dominant Class ---------------- Mutant | -10/Materials Mutant | -10/Mines Gunner | -9/Materials Gunner | -9/Mines Gunner | -9/Exiles Resources | -11 -10 -10 -9 -9 -9 ----------- Run | Scr Mat Min Mat Min Exi Matter Collected 1800 | 250 . 146 1122 282 . Remotely 1428 | . . 124 1022 282 . Salvage Created 1619 | . . 90 1274 255 . Parts 117 | . . 6 98 13 . Haulers Intercepted 4 | . . . 4 . . Recyclers Shooed 2 | . . 1 1 . . Parts Field Recycled . | . . . . . . Retrieved Matter . | . . . . . . Parts Self-Destructed . | . . . . . . Prevented . | . . . . . . Kills | -11 -10 -10 -9 -9 -9 ------- Run | Scr Mat Min Mat Min Exi Combat Hostiles Destroyed 45 | . . 7 33 5 . Guns 45 | . . 7 33 5 . Classes Destroyed 11 | . . 4 6 1 . Worker 4 | . . 1 2 1 . Builder 1 | . . . 1 . . Tunneler 2 | . . . . 2 . Hauler 4 | . . . 4 . . Recycler 2 | . . . 1 1 . Operator 1 | . . . 1 . . Swarmer 15 | . . 2 9 4 . Grunt 19 | . . . 18 1 . Sentry 6 | . . . 6 . . Demolisher 2 | . . 2 . . . Assembled 3 | . . 3 . . . Best Kill Streak 6 | . . 3 6 4 . Combat Bots Only 4 | . . 3 4 3 . Max Kills in Single Turn 2 | . . 1 2 1 . Gunslinging 1 | . . . 1 . . Exploded . | . . . . . . Melee . | . . . . . . Uniques/NPCs Destroyed . | . . . . . . Combat | -11 -10 -10 -9 -9 -9 -------- Run | Scr Mat Min Mat Min Exi Damage Taken 1226 | . . 247 858 121 . Core 980 | . . 205 685 90 . Absorbed by Shields . | . . . . . . Redirected to Core 775 | . . 121 564 90 . Core Remaining (%) 96 | 100 . 93 . . . Volleys Fired 134 | . . 21 97 16 . Largest 4 | . . 2 4 4 . Hottest 100 | . . 40 100 100 . Shots Fired 412 | . . 42 306 64 . Gun 412 | . . 42 306 64 . Cannon . | . . . . . . Launcher . | . . . . . . Special . | . . . . . . Kinetic 412 | . . 42 306 64 . Thermal . | . . . . . . Explosive . | . . . . . . Electromagnetic . | . . . . . . Robot Hit Streak 18 | . . 7 18 8 . Robot Miss Streak 7 | . . 7 4 3 . Penetration Max . | . . . . . . Secondary Targets 7 | . . 1 6 . . Max Gunslinging Chain 1 | . . 1 1 . . Shots Hit Robots 235 | . . 22 184 29 . Core Hits 88 | . . 11 68 9 . Critical Hits . | . . . . . . Critical Kills . | . . . . . . Critical Parts Destroyed . | . . . . . . Melee Attacks . | . . . . . . Impact . | . . . . . . Slashing . | . . . . . . Piercing . | . . . . . . Sneak Attacks . | . . . . . . Combat Hostiles . | . . . . . . Follow-up Attacks . | . . . . . . Damage Inflicted 2997 | . . 280 2256 461 . Guns 2997 | . . 280 2256 461 . Cannons . | . . . . . . Explosions . | . . . . . . Melee . | . . . . . . Ramming . | . . . . . . Kinetic 2997 | . . 280 2256 461 . Thermal . | . . . . . . Explosive . | . . . . . . Electromagnetic . | . . . . . . Impact . | . . . . . . Slashing . | . . . . . . Piercing . | . . . . . . Highest Corruption . | . . . . . . Average Corruption . | . . . . . . Corruption Purged . | . . . . . . Overload Shots . | . . . . . . Overflow Damage . | . . . . . . Projectiles . | . . . . . . Explosions . | . . . . . . Melee . | . . . . . . Knockbacks . | . . . . . . Impact . | . . . . . . Kinetic . | . . . . . . Secondary . | . . . . . . Self-Inflicted Damage . | . . . . . . Shots . | . . . . . . Rammed . | . . . . . . Targets Rammed . | . . . . . . Kicked . | . . . . . . Crushed . | . . . . . . Highest Temperature 183 | . . . 183 175 . Average Temperature 69 | . . . 63 79 . Received Heat Transfer 327 | . . . 321 6 . Siege Activations . | . . . . . . Robots Corrupted . | . . . . . . Combat Hostiles . | . . . . . . Parts Fried . | . . . . . . Impact Corruptions . | . . . . . . Robots Melted . | . . . . . . Combat Hostiles . | . . . . . . Parts Melted . | . . . . . . Heat Transferred . | . . . . . . Parts Sabotaged . | . . . . . . Parts Stolen . | . . . . . . Parts Stripped . | . . . . . . Power Chain Reactions . | . . . . . . Missiles Intercepted . | . . . . . . Alert | -11 -10 -10 -9 -9 -9 ------- Run | Scr Mat Min Mat Min Exi Peak Influence 800 | . 47 113 800 422 . Initial 312 | . . 18 43 312 . Average 328 | . 34 62 432 341 . Maximum Alert Level 3 | . . . 3 2 . Low Security (%) 31 | 100 100 100 17 . . Level 1 33 | . . . 29 73 . Level 2 28 | . . . 39 26 . Level 3 7 | . . . 13 . . Level 4 . | . . . . . . Level 5 . | . . . . . . High Security . | . . . . . . Max Security . | . . . . . . Squads Dispatched 9 | . 2 . 7 . . Investigation 6 | . 2 . 4 . . Extermination . | . . . . . . Reinforcement 3 | . . . 3 . . Assault . | . . . . . . Garrison . | . . . . . . Intercept . | . . . . . . Construction Impeded . | . . . . . . Haulers Reinforced . | . . . . . . Stealth | -11 -10 -10 -9 -9 -9 --------- Run | Scr Mat Min Mat Min Exi Distress Signals 3 | . . . 3 . . Communications Jammed . | . . . . . . Distress Signals . | . . . . . . Times Spotted 71 | . . 11 54 6 . Peak Tracking Total 6 | . . 5 6 4 . Tactical Retreats 9 | . . 2 6 1 . Traps | -11 -10 -10 -9 -9 -9 ------- Run | Scr Mat Min Mat Min Exi Traps Triggered 2 | . . . 2 . . Indirectly . | . . . . . . Trap Hack Attempts . | . . . . . . Triggered . | . . . . . . Disarmed . | . . . . . . Reprogrammed . | . . . . . . Reused . | . . . . . . Traps Extracted . | . . . . . . Installed . | . . . . . . Triggered . | . . . . . . Machines | -11 -10 -10 -9 -9 -9 ---------- Run | Scr Mat Min Mat Min Exi Machines Disabled . | . . . . . . Max in Single Turn . | . . . . . . Machines Sabotaged . | . . . . . . Garrisons Compromised . | . . . . . . Overloaded Fab Kills . | . . . . . . Fab Network Shutdowns . | . . . . . . Hacking | -11 -10 -10 -9 -9 -9 --------- Run | Scr Mat Min Mat Min Exi Machines Accessed 13 | . 4 . 7 1 1 Terminals 9 | . 3 . 6 . . Fabricators . | . . . . . . Repair Stations . | . . . . . . Recycling Units 2 | . 1 . 1 . . Scanalyzers . | . . . . . . Garrison Access . | . . . . . . Total Hacks 37 | . 14 . 21 1 1 Successful 15 | . 6 . 7 1 1 Failed 22 | . 8 . 14 . . Catastrophic 6 | . . . 6 . . Database Lockouts . | . . . . . . Manual 24 | . 8 . 15 . 1 Terminals 33 | . 13 . 20 . . Fabricators . | . . . . . . Repair Stations . | . . . . . . Recycling Units 2 | . 1 . 1 . . Scanalyzers . | . . . . . . Garrison Access . | . . . . . . Terminal Hacks 13 | . 5 . 6 1 1 Prototype ID Bank 5 | . . . 5 . . Open Door 1 | . . . . 1 . Branch Access Points 2 | . 1 . 1 . . Locate Traps 1 | . 1 . . . . Recall Investigation 2 | . 2 . . . . Zone Layout 1 | . 1 . . . . EX-Prototype ID Bank 1 | . . . . . 1 Fabricator Hacks . | . . . . . . Repair Station Hacks . | . . . . . . Recycling Unit Hacks . | . . . . . . Scanalyzer . | . . . . . . Garrison Access Hacks . | . . . . . . Unauthorized Hacks 2 | . 1 . 1 . . Terminals . | . . . . . . Fabricators . | . . . . . . Repair Stations . | . . . . . . Recycling Units 2 | . 1 . 1 . . Tunnel 2 | . 1 . 1 . . Scanalyzers . | . . . . . . Garrison Access . | . . . . . . Data Cores Recovered . | . . . . . . Used . | . . . . . . Hacking Detections 9 | . 3 . 6 . . Full Trace Events 3 | . 1 . 2 . . Feedback Events . | . . . . . . Feedback Blocked . | . . . . . . Robot Schematics Acquired . | . . . . . . Robots Built . | . . . . . . Matter . | . . . . . . Time . | . . . . . . Total Robot Build Rating . | . . . . . . Part Schematics Acquired . | . . . . . . Parts Built . | . . . . . . Matter . | . . . . . . Time . | . . . . . . Total Part Build Rating . | . . . . . . Parts Repaired . | . . . . . . Time . | . . . . . . Parts Recycled . | . . . . . . Recycled Matter . | . . . . . . Retrieved Matter . | . . . . . . Retrieved Components . | . . . . . . Parts Scanalyzed . | . . . . . . Part Schematics Acquired . | . . . . . . Parts Damaged . | . . . . . . Bothacking | -11 -10 -10 -9 -9 -9 ------------ Run | Scr Mat Min Mat Min Exi Used RIF Installer . | . . . . . . Robots Hacked . | . . . . . . Non-combat . | . . . . . . Combat . | . . . . . . Robot Hacks Applied . | . . . . . . Relay Couplers Released . | . . . . . . Robots Rewired . | . . . . . . Allies Hacked . | . . . . . . Hacks Repelled . | . . . . . . Allies | -11 -10 -10 -9 -9 -9 -------- Run | Scr Mat Min Mat Min Exi Total Allies . | . . . . . . Largest Group . | . . . . . . Highest-Rated Group . | . . . . . . Highest-Rated Ally . | . . . . . . Total Orders . | . . . . . . Ally Attacks . | . . . . . . Total Damage . | . . . . . . Kills . | . . . . . . Allies Corrupted . | . . . . . . Allies Melted . | . . . . . . Intel | -11 -10 -10 -9 -9 -9 ------- Run | Scr Mat Min Mat Min Exi Robot Analysis Total . | . . . . . . Derelict Logs Recovered 2 | . . . . 2 . Drone Launches . | . . . . . . Drone Recoveries . | . . . . . . Exploration | -11 -10 -10 -9 -9 -9 ------------- Run | Scr Mat Min Mat Min Exi Turns Passed 1990 | 39 84 281 1030 441 115 Spaces Moved 1681 | 41 100 237 702 468 133 Core 2 | 2 . . . . . Treads . | . . . . . . Legs . | . . . . . . Wheels 1679 | 39 100 237 702 468 133 Hover . | . . . . . . Flight . | . . . . . . Fastest Speed 50 | 50 80 80 80 80 80 Average Speed 79 | 78 80 80 80 80 80 Slowest Speed 80 | 80 80 80 80 80 80 Overloaded Moves . | . . . . . . Propulsion Burnouts . | . . . . . . Robots Hopped . | . . . . . . Cave-ins Triggered . | . . . . . . Exploration Rate (%) 48 | 3 29 70 80 63 46 Regions Visited 5 Branch Regions 3 Pre-discovered Areas 2 | . 1 . 1 . . Known Exits Taken 2 | . 1 . 1 . . Unknown Exits Taken 3 | 1 . 1 . 1 . Scrap Searched 2 | . . 1 . 1 . Spaces Dug . | . . . . . . Terrain Destroyed . | . . . . . . Melee . | . . . . . . Projectile . | . . . . . . AOE . | . . . . . . Terrain Rammed . | . . . . . . Walls Destroyed . | . . . . . . Machines Disabled . | . . . . . . Actions | -11 -10 -10 -9 -9 -9 --------- Run | Scr Mat Min Mat Min Exi Total 2045 | 45 103 285 963 507 142 Wait 133 | . 1 18 92 22 . Move 1676 | 40 99 236 701 467 133 Hop . | . . . . . . Pick Up 7 | . 1 . 5 . 1 Fast Attach 15 | 5 1 1 7 1 . Attach 1 | . . . 1 . . Detach . | . . . . . . Swap 3 | . . . 3 . . Drop 13 | . 1 . 10 1 1 Fire 134 | . . 21 97 16 . Melee . | . . . . . . Ram . | . . . . . . Kick . | . . . . . . Crush . | . . . . . . Escape Stasis . | . . . . . . Rewire . | . . . . . . Trap . | . . . . . . Miscellaneous 63 | . . 9 47 . 7 Route ------- -11/Scrapyard -10/Materials -10/Mines (discovered 2 exits: *Mat x2) -9/Materials (discovered 5 exits: [*Mat x3] / *Min x2) -9/Mines -9/Exiles History --------- Turn | Location | Event 1 | -11/Scrapyard | Upgraded with Propulsion slot (x1) 1 | -11/Scrapyard | Upgraded with Utility slot (x1) 1 | -11/Scrapyard | Upgraded with Weapon slot (x1) 2 | -11/Scrapyard | Met Revision 17 4 | -11/Scrapyard | Discovered new exit (range 16) 40 | -11/Scrapyard | Entered Materials 77 | -10/Materials | Identified exit to Mines 124 | -10/Materials | Entered Mines 154 | -10/Mines | Discovered new exit (range 7) 173 | -10/Mines | Assembled infested the area 309 | -10/Mines | Build established: Mutant 399 | -10/Mines | Discovered new exit (range 7) 405 | -10/Mines | Entered Materials 407 | -9/Materials | Reached level 2 463 | -9/Materials | Upgraded with Weapon slot (x1) 541 | -9/Materials | Reached level 3 754 | -9/Materials | Discovered new exit (range 3) 779 | -9/Materials | Build established: Gunner 845 | -9/Materials | Discovered new exit (range 9) 880 | -9/Materials | Reached level 4 1083 | -9/Materials | Reached level 5 1099 | -9/Materials | Discovered new exit (range 7) 1187 | -9/Materials | Upgraded with Weapon slot (x1) 1234 | -9/Materials | Discovered new exit (range 16) 1288 | -9/Materials | Identified exit to Mines 1435 | -9/Materials | Entered Mines 1437 | -9/Mines | Reached level 6 1441 | -9/Mines | Met a Derelict bent on vengeance 1458 | -9/Mines | Deemed a non-threat by the Exiles lab entrance 1458 | -9/Mines | Discovered new exit (range 5) 1529 | -9/Mines | Found a damaged Exp. Sensor Array with a note attached 1574 | -9/Mines | Learned Materials emergency access door positions 1582 | -9/Mines | Learned 2 Materials zone layouts 1736 | -9/Mines | Met a Derelict who couldn't figure out how to use a Trap Extractor 1876 | -9/Mines | Entered Exiles 1897 | -9/Exiles | Met 8R-AWN 1921 | -9/Exiles | Met EX-HEX 1959 | -9/Exiles | Met EX-BIN 1968 | -9/Exiles | Aligned with FarCom system 1969 | -9/Exiles | Given EX-Vault access code 1988 | -9/Exiles | Opened EX-Vault 1991 | -9/Exiles | Self-destructed Last Messages --------------- Modified TNC 0b10 Alert Chip Cloak of Protection Skeleton Box Trap Reconfigurator Supersonic Drone Bay Army-in-a-Box PSU Rigger Chronowheel AWS/Thermal Latent Energy Streamer Gui. Plasma Cannon Firepult YOLO Cannon AWS/Gauss XL Autogun Array AWS/Autocannon Field Lobotomy Kit Longsword +1 Deploy-a-Sentry Map ----- +----------------------------------------------------+ | | | | | | | | | | | | | | | | | | | | | | | | | | | | | | | | | | | | | | | | | ???????????????????#########?????????????????????? | | ???????????????????# #?????????????????????? | | ???????????????????# && #?????????????????????? | | ???????????????????# & ]] #?????????????????????? | | ???????????????????# X#?????????????????????? | | ???????????????????## @#??????????????????????? | | ???????????????????#X #??????????????????????? | | ???????????????????## #??????????????????????? | | ????????????????????# #??????????????????????? | | ????????????????????# #???###????????????????? | | ????????????????????# #??"""""???????????????? | | ????????????????????# ## """???????????????? | | ????????????????????# X""???????????????? | | ????????????????????# ## """???????????????? | | ??????????????####??# #??"""""???????????????? | | ?????????????""""""?# #???###????????????????? | | ?????????????"""" ## #??????????????????????? | | ????????????#""X" #??????????????????????? | | ????????????#" #??????????????????????? | | ????????????#" ## #??????????????????????? | | ????????????#""""""?# #?#########????????????? | | ?????????????#"###??# #?#"""""""#????????????? | | ????????????????????# #?#"""""""#????????????? | | ????????????????????# #?#"""""""#????????????? | | ???????????????????## ###"" """"#????????????? | | ???????????????????#" """"#????????????? | | ???????????????????#" """#????????????? | | ???????????????????#" """#????????????? | | ???????????????????#" """#????????????? | | ???????????????????#" """#????????????? | +----------------------------------------------------+ Best States ------------- Heat Dissipation 45 Coolant Potential 50 Energy Generation 21 Energy Capacity 290 Matter Stores 350 Matter Capacity 350 Sight Range 16 Terrain Scan Density 10 Resistance: KI 5 Resistance: TH 5 Evasion (%) 44 Item Schematics ----------------- None Robot Schematics ------------------ None Fabricated ------------ Nothing Alien Tech Used ----------------- None Achievements -------------- None Challenges ------------ None RPGLIKE | -11 -10 -10 -9 -9 -9 --------- Run | Scr Mat Min Mat Min Exi Levels Raised 5 | . . . 4 1 . XP Earned 11662 | 3000 190 950 6121 1051 350 XP Spent 6185 | 2925 . . 3100 160 . Upgrades 18 | 11 . . 5 2 . Propulsion Slot 1 | 1 . . . . . Utility Slot 1 | 1 . . . . . Weapon Slot 3 | 1 . . 2 . . Core Integrity 1 | 1 . . . . . Heat Dissipation 3 | 1 . . . 2 . Energy Generation 1 | 1 . . . . . Matter Storage 1 | . . . 1 . . Mass Support 1 | 1 . . . . . Inventory Capacity 2 | 1 . . 1 . . Ranged Accuracy 2 | 1 . . 1 . . KI Resistance % 1 | 1 . . . . . TH Resistance % 1 | 1 . . . . . Protomatter Created 513 | . . 45 468 . . Integrity Restored 1216 | . . 162 905 . 149 Core 980 | . . 162 726 . 92 Parts 236 | . . . 179 . 57 Protomatter Decayed 171 | . . 39 52 80 . Game ------ Seed DeliveryMappingSegregator Manual? 0 Play Time 00:20:41 Cumulative 485.6 hours Start 2021.06.29 @ 14:33:54 End 2021.06.29 @ 14:53:31 Sessions 1 Manual Loads 0 Difficulty Rogue Special Mode Winter2019/RPGLIKE Game No. 177 Rogue 177 Adventurer 0 Explorer 0 Win Type - Total 37 Types 24/2/6/2/2/0/0/0/1 Lore% 86 Gallery% 92 Achievement% 82 Wizard Run 0 Options --------- ASCII 0 Keyboard 0 Movement Mouse Keybinds 0 Fullscreen 2 Font 12/Smallcaps Map View 83x54 Tactical HUD 1 Map Filters NONE Filters NONE Steam X RUN: d37505e4-c95c-4fb2-a9af-49fcdd9f119b